bitfinex/quotes_SOLUSD_20260105
["timestamp","ask_amount","ask_price","bid_price","bid_amount"]
[1767611072054,2.932633,135.34,135.32,0.89615153]
[1767611073167,8.04727503,135.36,135.32,0.89615153]
[1767611073351,2.932633,135.35,135.32,0.89615153]
[1767611074069,2.932633,135.35,135.33,0.69615153]
[1767611077473,8.04727503,135.36,135.33,0.69615153]
[1767611077647,2.932633,135.35,135.33,0.69615153]
[1767611078269,3.031633,135.36,135.33,0.69615153]
[1767611078848,2.932633,135.35,135.33,0.69615153]
[1767611080550,0.64824882,135.33,135.3,0.89615153]
[1767611080755,2.932633,135.31,135.28,7.39163553]
[1767611081056,2.932633,135.32,135.27,13.66]
[1767611081281,2.932633,135.31,135.27,21.05224655]
[1767611081461,2.932633,135.31,135.27,7.59224655]
[1767611081665,2.932633,135.31,135.27,21.05224655]
[1767611082149,2.932633,135.32,135.28,13.46]
[1767611082573,0.68447789,135.33,135.28,13.46]
[1767611082884,2.932633,135.33,135.29,0.69615153]
[1767611083054,3.61711089,135.34,135.29,0.69615153]
[1767611083561,3.61711089,135.34,135.31,0.69615153]
[1767611084462,3.61711089,135.34,135.31,8.08657247]
[1767611084782,2.932633,135.34,135.31,0.69615153]
[1767611089772,8.07284671,135.35,135.31,0.69615153]
[1767611089981,2.932633,135.34,135.31,0.69615153]
[1767611091705,7.3877943,135.36,135.32,0.66711057]
[1767611091874,2.932633,135.34,135.32,0.66711057]
[1767611092186,2.932633,135.34,135.3,7.39077827]
[1767611092187,0.67127344,135.34,135.3,0.66711057]
[1767611092385,2.872633,135.33,135.31,0.66711057]
[1767611092574,2.932633,135.35,135.31,0.66711057]
[1767611092769,2.932633,135.35,135.32,0.66711057]
[1767611094288,2.932633,135.34,135.32,0.66711057]
[1767611101104,0.67127344,135.35,135.32,0.66711057]
[1767611101269,2.932633,135.34,135.32,0.66711057]
[1767611104096,0.67127344,135.35,135.32,0.66711057]
[1767611104294,0.67127344,135.35,135.32,8.05692542]
[1767611104480,3.60390644,135.35,135.32,0.66711057]
[1767611105792,0.67127344,135.35,135.32,0.66711057]
[1767611106103,8.07860622,135.37,135.33,0.71659481]
[1767611106397,8.07860622,135.37,135.32,7.38965118]
[1767611106398,0.691373,135.35,135.32,7.38965118]
[1767611106568,0.691373,135.35,135.32,20.86965118]
[1767611107297,3.624006,135.35,135.32,14.19659481]
[1767611107491,3.624006,135.35,135.32,0.71659481]
[1767611107691,0.691373,135.34,135.32,0.71659481]
[1767611107881,0.631373,135.34,135.32,0.71659481]
[1767611108473,0.631373,135.34,135.32,8.10643638]
[1767611111024,0.691373,135.35,135.32,8.10643638]
[1767611111504,3.624006,135.36,135.33,0.71659481]
[1767611112286,3.624006,135.36,135.34,0.71659481]
[1767611112587,2.932633,135.35,135.33,0.71659481]
[1767611113297,0.691373,135.34,135.31,28.44171261]
[1767611113489,2.932633,135.35,135.33,0.71659481]
[1767611113688,0.691373,135.35,135.32,7.38988054]
[1767611114012,0.591373,135.34,135.31,14.26512147]
[1767611114598,2.932633,135.35,135.32,0.71659481]
[1767611115902,7.97915279,135.36,135.32,0.71659481]
[1767611116095,7.3873769,135.37,135.32,0.71659481]
[1767611116301,10.4190099,135.37,135.33,0.71659481]
[1767611118107,2.932633,135.36,135.33,0.71659481]
[1767611118695,3.03650749,135.35,135.28,7.61420756]
[1767611118892,2.932633,135.35,135.32,0.71659481]
[1767611121511,7.48714474,135.36,135.32,0.71659481]
[1767611121716,2.932633,135.35,135.32,0.71659481]
[1767611122313,0.099,135.36,135.32,0.71659481]
[1767611122522,2.932633,135.35,135.32,0.71659481]
[1767611122999,2.932633,135.35,135.33,0.71659481]
[1767611125404,2.932633,135.34,135.33,0.71659481]
[1767611126716,2.932633,135.34,135.32,0.71659481]
[1767611127100,10.32149482,135.34,135.32,0.71659481]
[1767611128616,11.97397387,135.34,135.32,0.71659481]
[1767611132222,7.38886182,135.34,135.32,0.71659481]
[1767611132519,11.97397387,135.34,135.32,0.71659481]
[1767611132712,12.07784836,135.34,135.31,0.68389928]
[1767611134022,4.58511205,135.33,135.31,0.68389928]
[1767611136624,11.97397387,135.34,135.31,0.68389928]
[1767611136838,4.58511205,135.33,135.31,0.68389928]
[1767611137144,11.97397387,135.34,135.31,0.68389928]
[1767611138225,0.58644927,135.33,135.3,8.07481499]
[1767611138429,12.56534687,135.34,135.3,0.68389928]
[1767611138608,7.98023482,135.34,135.3,0.68389928]
[1767611138812,12.56534687,135.34,135.3,0.68389928]
[1767611139120,12.07297387,135.34,135.31,0.68389928]
[1767611140937,11.97397387,135.34,135.31,0.68389928]
[1767611141734,12.07297387,135.34,135.31,0.68389928]
[1767611143733,7.38826388,135.35,135.31,0.68389928]
[1767611143945,12.07237593,135.35,135.31,0.68389928]
[1767611144235,0.591373,135.37,135.32,0.68389928]
[1767611144409,31.94742247,135.38,135.32,0.68389928]
[1767611144410,0.58644927,135.35,135.32,0.68389928]
[1767611145541,4.58511205,135.36,135.33,0.68389928]
[1767611148239,12.07127316,135.37,135.33,0.68389928]
[1767611149026,4.58511205,135.36,135.33,0.68389928]
[1767611149232,0.58644927,135.35,135.32,7.38967936]
[1767611149434,4.58511205,135.36,135.33,0.68389928]
[1767611150139,0.58644927,135.35,135.32,7.38967936]
[1767611152340,0.58644927,135.35,135.31,33.01420288]
[1767611153148,0.58644927,135.35,135.31,28.42909083]
[1767611153341,0.58644927,135.35,135.31,33.01420288]
[1767611153645,12.56422001,135.36,135.32,0.66799036]
[1767611155744,4.58511205,135.35,135.32,0.66799036]
[1767611156067,4.58511205,135.34,135.31,7.54299036]
[1767611156249,4.58511205,135.34,135.32,0.66799036]
[1767611158148,0.591373,135.35,135.32,0.66799036]
[1767611158149,12.56526842,135.35,135.32,0.66799036]
[1767611158542,4.68411205,135.34,135.31,0.66799036]
[1767611158934,4.58511205,135.34,135.31,0.66799036]
[1767611159953,11.97398147,135.34,135.31,0.66799036]
[1767611161049,4.58511205,135.34,135.31,0.66799036]
[1767611161255,12.56498949,135.35,135.31,0.66799036]
[1767611161957,0.099,135.34,135.31,0.66799036]
[1767611163583,11.97361649,135.35,135.31,0.66799036]
[1767611164855,12.07261649,135.35,135.31,0.66799036]
[1767611166957,4.58511205,135.32,135.28,0.66649285]
[1767611167257,4.58511205,135.3,135.28,0.66649285]
[1767611167853,4.58511205,135.3,135.27,0.2]
[1767611167854,4.58511205,135.29,135.27,0.2]
[1767611168156,4.68898654,135.29,135.27,0.2]
[1767611168335,4.58511205,135.29,135.27,0.86649285]
[1767611170158,4.58511205,135.28,135.27,0.86649285]
[1767611170755,4.58511205,135.28,135.26,7.39283997]
[1767611171858,7.98198731,135.31,135.26,7.39283997]
[1767611172160,4.58511205,135.27,135.26,7.39283997]
[1767611172658,7.98198731,135.31,135.26,7.39283997]
[1767611172838,4.58511205,135.27,135.26,8.05933282]
[1767611173041,12.56709936,135.31,135.27,0.66649285]
[1767611173355,4.58511205,135.28,135.25,38.83906394]
[1767611173651,0.71947955,135.3,135.25,38.83906394]
[1767611173870,4.58511205,135.28,135.25,38.83906394]
[1767611174464,4.58511205,135.28,135.26,7.39282011]
[1767611175260,4.58511205,135.28,135.26,8.05931296]
[1767611175464,4.58511205,135.29,135.26,8.05931296]
[1767611177544,4.58511205,135.29,135.26,0.66649285]
[1767611177862,5.3045916,135.29,135.26,0.66649285]
[1767611180742,4.58511205,135.29,135.25,7.39350357]
[1767611180948,7.39182498,135.29,135.23,0.2]
[1767611181152,4.58511205,135.26,135.23,0.2]
[1767611181341,0.71947955,135.25,135.23,0.2]
[1767611181538,0.65947956,135.25,135.23,0.2]
[1767611184568,5.24459161,135.25,135.23,0.2]
[1767611187669,0.65947956,135.25,135.23,0.2]
[1767611187959,5.24459161,135.25,135.23,0.2]
[1767611188355,0.71947955,135.23,135.22,0.2]
[1767611188547,4.58511205,135.24,135.22,0.2]
[1767611189356,4.58511205,135.24,135.22,7.59534409]
[1767611190568,3.65817971,135.24,135.22,7.59534409]
[1767611190940,0.71947955,135.24,135.22,7.59534409]
[1767611191146,0.65634289,135.25,135.22,8.2494238]
[1767611191453,0.38734065,135.27,135.23,0.65407971]
[1767611191856,0.38734065,135.27,135.22,42.50243354]
[1767611192054,0.38734065,135.27,135.22,43.15651325]
[1767611192260,0.38734065,135.27,135.23,2.93870016]
[1767611192449,0.38734065,135.27,135.23,23.81303849]
[1767611192652,0.38734065,135.27,135.23,24.4671182]
[1767611193070,0.38734065,135.27,135.24,0.65407971]
[1767611194853,8.04782727,135.3,135.26,0.65407971]
[1767611195054,0.65634289,135.3,135.26,0.65407971]
[1767611195254,0.65634289,135.3,135.27,0.65407971]
[1767611195772,0.65634289,135.31,135.27,0.65407971]
[1767611196369,0.65634289,135.31,135.27,2.93870016]
[1767611196562,0.65634289,135.31,135.27,3.59277987]
[1767611196752,0.65634289,135.31,135.27,10.98503417]
[1767611197077,0.65634289,135.31,135.27,8.04633401]
[1767611197256,0.65634289,135.31,135.27,10.98503417]
[1767611199857,0.65634289,135.31,135.28,0.65407971]
[1767611200563,3.59504305,135.31,135.28,0.65407971]
[1767611200884,0.65634289,135.33,135.3,0.65407971]
[1767611204792,8.1199832,135.34,135.31,0.65407971]
[1767611204993,8.1199832,135.34,135.31,14.13407971]
[1767611205672,8.1199832,135.34,135.31,17.07277987]
[1767611205875,8.5046341,135.34,135.31,24.46305372]
[1767611209678,8.1199832,135.34,135.32,3.59277987]
[1767611210267,8.1199832,135.34,135.32,17.07277987]
[1767611210794,8.1199832,135.34,135.33,0.65407971]
[1767611210996,8.1199832,135.34,135.32,16.41870016]
[1767611211576,8.1199832,135.34,135.33,5.65e-06]
[1767611211881,8.1199832,135.34,135.33,1.9e-06]
[1767611212492,0.71960633,135.37,135.33,7.38934646]
[1767611212694,0.71960633,135.37,135.33,9.69570109]
[1767611212997,0.71960633,135.37,135.33,9.69363113]
[1767611214189,8.1069216,135.37,135.33,0.66027557]
[1767611214396,0.71960633,135.36,135.32,14.14027557]
[1767611214575,10.32601543,135.37,135.29,0.66027557]
[1767611214576,0.71960633,135.33,135.29,0.66027557]
[1767611214780,0.71960633,135.32,135.29,14.14027557]
[1767611215091,0.71960633,135.32,135.28,21.4179571]
[1767611215287,0.71960633,135.32,135.29,13.48]
[1767611215666,0.71960633,135.32,135.29,20.871221]
[1767611218991,0.71960633,135.32,135.29,23.80992116]
[1767611220200,0.71960633,135.32,135.29,24.47019673]
[1767611220580,0.70507768,135.33,135.29,24.47019673]
[1767611221206,0.70507768,135.35,135.32,0.71512658]
[1767611221692,0.70507768,135.35,135.32,0.68766914]
[1767611223627,0.70507768,135.36,135.32,8.07729477]
[1767611224685,8.0920065,135.38,135.34,0.71512658]
[1767611225010,0.70507768,135.37,135.33,23.80803585]
[1767611225215,0.70507768,135.37,135.33,20.86933569]
[1767611225784,0.70507768,135.37,135.33,23.80803585]
[1767611227011,0.70507768,135.37,135.34,2.93870016]
[1767611227985,0.70507768,135.37,135.33,39.3426971]
[1767611228185,11.02949653,135.4,135.36,0.71512658]
[1767611228406,3.64377784,135.38,135.34,14.19512658]
[1767611229111,3.64377784,135.38,135.34,21.58389546]
[1767611229512,3.64377784,135.38,135.34,8.10389546]
[1767611229711,3.64377784,135.38,135.34,21.58389546]
[1767611230006,0.70507768,135.38,135.34,21.58389546]
[1767611230191,0.70507768,135.39,135.36,0.71512658]
[1767611231801,0.70507768,135.4,135.37,0.71512658]
[1767611234705,0.70507768,135.4,135.36,7.38767547]
[1767611234905,0.70507768,135.4,135.37,0.71512658]
[1767611237332,8.09063883,135.4,135.37,0.71512658]
[1767611238129,11.02933899,135.4,135.37,0.71512658]
[1767611238704,11.02933899,135.4,135.36,8.10280205]
[1767611239236,3.64377784,135.39,135.34,0.71512658]
[1767611239439,3.64377784,135.39,135.35,14.17512658]
[1767611240239,0.1,135.41,135.35,14.17512658]
[1767611240240,7.38556115,135.45,135.41,0.71512658]
[1767611240404,8.08797062,135.45,135.41,13.46]
[1767611240721,0.70507768,135.44,135.4,7.38522525]
[1767611240920,0.70507768,135.41,135.38,13.46]
[1767611241100,0.70507768,135.41,135.37,23.78550704]
[1767611241501,0.70507768,135.41,135.37,10.32550704]
[1767611241706,0.70507768,135.41,135.37,23.78550704]
[1767611242515,0.70507768,135.41,135.38,10.32512089]
[1767611243130,0.70507768,135.41,135.39,2.93870016]
[1767611243644,0.70507768,135.41,135.39,16.39870016]
[1767611243841,0.70507768,135.43,135.39,16.39870016]
[1767611244016,0.70507768,135.44,135.4,3.39715727]
[1767611244215,0.70507768,135.44,135.41,2.93870016]
[1767611244900,0.70507768,135.44,135.41,10.32359392]
[1767611245120,0.70507768,135.44,135.42,2.93870016]
[1767611245827,0.70507768,135.45,135.43,2.93870016]
[1767611246335,0.70507768,135.45,135.41,20.84489376]
[1767611246631,0.70507768,135.45,135.42,2.93870016]
[1767611246816,0.70507768,135.45,135.43,2.93870016]
[1767611248133,0.80507768,135.46,135.44,2.93870016]
[1767611248326,0.80507768,135.46,135.44,3.39715727]
[1767611248327,0.1,135.46,135.44,3.39715727]
[1767611248914,0.1,135.46,135.43,20.84386104]
[1767611248915,0.70507768,135.47,135.45,2.93870016]
[1767611250537,0.70507768,135.47,135.45,4.57449301]
[1767611251631,0.6926722,135.46,135.43,4.57449301]
[1767611251826,0.6926722,135.46,135.43,13.46]
[1767611252025,0.6926722,135.46,135.42,18.68902825]
[1767611252526,0.6926722,135.46,135.43,0.65453524]
[1767611253622,8.07505354,135.46,135.43,0.65453524]
[1767611261445,7.38238134,135.46,135.39,0.65453524]
[1767611261628,4.57449301,135.43,135.39,0.65453524]
[1767611262035,0.6926722,135.42,135.39,0.65453524]
[1767611262243,8.07732796,135.42,135.39,0.65453524]
[1767611262546,12.65182097,135.42,135.39,0.65453524]
[1767611264137,0.6926722,135.42,135.39,0.65453524]
[1767611265546,8.07714655,135.42,135.39,0.65453524]
[1767611265741,12.65163956,135.42,135.39,0.65453524]
[1767611267048,8.07714655,135.42,135.39,0.65453524]
[1767611267847,8.07714655,135.42,135.38,0.65453524]
[1767611267848,4.57449301,135.41,135.38,0.65453524]
[1767611268056,4.57449301,135.41,135.37,14.11453524]
[1767611268057,0.6926722,135.41,135.37,14.11453524]
[1767611268261,0.6926722,135.41,135.38,0.65453524]
[1767611269132,0.6926722,135.41,135.38,8.04113698]
[1767611269647,0.6926722,135.41,135.38,0.65453524]
[1767611270236,8.0776863,135.41,135.38,0.65453524]
[1767611270750,0.6926722,135.41,135.38,0.65453524]
[1767611271348,0.6926722,135.41,135.37,8.04145968]
[1767611272154,0.6926722,135.41,135.37,12.61595269]
[1767611272451,0.6926722,135.41,135.37,8.04145968]
[1767611272759,0.6926722,135.41,135.37,12.61595269]
[1767611275659,0.65403675,135.44,135.41,0.66746221]
[1767611275957,0.65403675,135.44,135.42,4.57449301]
[1767611276335,0.65403675,135.46,135.42,4.57449301]
[1767611276740,0.65403675,135.43,135.4,0.66746221]
[1767611276944,0.65403675,135.43,135.39,21.51353208]
[1767611277864,0.65403675,135.43,135.39,26.08802509]
[1767611280244,0.65403675,135.42,135.39,26.08802509]
[1767611280768,0.70514141,135.43,135.39,8.05353208]
[1767611280935,0.70514141,135.41,135.37,5.29636157]
[1767611281138,0.70514141,135.4,135.37,13.46]
[1767611281767,0.70514141,135.4,135.37,14.18186856]
[1767611282273,0.70514141,135.42,135.37,26.14337754]
[1767611284068,8.08991974,135.42,135.37,26.14337754]
[1767611284370,0.70514141,135.41,135.37,26.14337754]
[1767611284749,0.70514141,135.41,135.38,0.72186856]
[1767611286349,7.38477833,135.42,135.39,0.72186856]
[1767611286551,8.08991974,135.42,135.39,0.72186856]
[1767611289848,8.08991974,135.42,135.37,25.42140171]
[1767611289849,0.70514141,135.41,135.38,12.68291328]
[1767611291574,0.70514141,135.41,135.38,8.10842027]
[1767611292273,7.38451148,135.42,135.39,0.72186856]
[1767611292450,8.08965289,135.42,135.39,0.72186856]
[1767611292972,0.70514141,135.42,135.39,0.72186856]
[1767611296460,8.08960305,135.42,135.39,0.72186856]
[1767611305081,0.70514141,135.41,135.37,26.1432751]
[1767611306172,0.70514141,135.41,135.38,0.72186856]
[1767611306377,0.70514141,135.41,135.37,26.1432751]
[1767611307879,0.70514141,135.41,135.38,0.72186856]
[1767611308385,0.70514141,135.39,135.35,0.72186856]
[1767611308575,0.70514141,135.38,135.35,0.72186856]
[1767611308759,0.70514141,135.37,135.33,14.18186856]
[1767611309184,0.70514141,135.37,135.33,13.46]
[1767611309368,0.70514141,135.37,135.33,0.72186856]
[1767611309890,0.70514141,135.37,135.32,26.1459607]
[1767611310189,0.70514141,135.37,135.32,21.57146769]
[1767611310492,0.70514141,135.35,135.3,23.46327588]
[1767611310782,0.67768963,135.35,135.31,0.72441081]
[1767611312163,0.61768953,135.35,135.31,0.72441081]
[1767611312588,7.38842149,135.35,135.31,0.72441081]
[1767611314586,8.10313808,135.35,135.31,0.72441081]
[1767611315459,8.10313808,135.35,135.31,8.11477785]
[1767611317893,11.03707349,135.35,135.31,0.72441081]
[1767611318578,0.71471659,135.34,135.31,0.72441081]
[1767611320374,3.648652,135.34,135.31,0.72441081]
[1767611320576,3.648652,135.34,135.29,0.92441081]
[1767611320577,3.648652,135.33,135.29,0.92441081]
[1767611320996,3.648652,135.33,135.3,0.72441081]
[1767611324300,0.71471659,135.33,135.3,0.72441081]
[1767611324884,3.648652,135.33,135.3,0.72441081]
[1767611326074,11.0380319,135.33,135.3,0.72441081]
[1767611326608,3.648652,135.32,135.29,0.2]
[1767611326777,0.71471659,135.3,135.29,0.2]
[1767611327874,11.03913355,135.31,135.29,0.2]
[1767611328075,0.71471659,135.3,135.27,53.45563094]
[1767611328586,0.71471659,135.3,135.27,54.18004175]
[1767611329104,0.68725913,135.3,135.27,46.06306612]
[1767611329304,10.32518781,135.3,135.27,46.06306612]
[1767611329475,2.93393541,135.29,135.27,46.06306612]
[1767611329680,2.93393541,135.29,135.26,0.72441081]
[1767611330285,10.32518781,135.3,135.26,0.72441081]
[1767611330481,7.39040411,135.32,135.27,0.72441081]
[1767611330697,7.39040411,135.32,135.27,7.39254625]
[1767611330698,2.93393541,135.31,135.27,7.39254625]
[1767611330875,0.71471659,135.3,135.27,0.72441081]
[1767611331089,2.93393541,135.31,135.27,0.72441081]
[1767611331090,3.648652,135.31,135.27,0.72441081]
[1767611331299,0.71471659,135.31,135.27,0.72441081]
[1767611331796,0.71218196,135.33,135.29,0.68237187]
[1767611332095,0.71218196,135.33,135.3,0.68237187]
[1767611332980,0.71218196,135.33,135.3,3.61630728]
[1767611333785,0.71218196,135.33,135.3,11.00707703]
[1767611334492,0.71218196,135.33,135.3,8.07314162]
[1767611335907,0.71218196,135.33,135.3,11.00707703]
[1767611336106,0.71218196,135.33,135.3,8.07314162]
[1767611337603,0.71218196,135.33,135.3,0.68237187]
[1767611338980,0.71218196,135.33,135.3,8.07323126]
[1767611341236,10.3227546,135.34,135.31,0.67933263]
[1767611342424,9.65755356,135.34,135.32,0.67933263]
[1767611343791,8.93255356,135.34,135.33,0.67933263]
[1767611346915,8.20755356,135.34,135.33,0.67933263]
[1767611347114,8.20755356,135.34,135.32,3.02894309]
[1767611349033,8.20755356,135.34,135.32,0.09500768]
[1767611364040,8.20755356,135.34,135.3,20.87071043]
[1767611364346,0.66520104,135.33,135.3,23.89965352]
[1767611366449,8.8727546,135.34,135.3,23.89965352]
[1767611367254,8.8727546,135.34,135.31,0.09500768]
[1767611367663,0.66520104,135.34,135.31,0.09500768]
[1767611375453,0.6760775,135.33,135.29,7.4]
[1767611375658,0.6760775,135.32,135.29,7.4]
[1767611375855,5.25968416,135.32,135.29,7.4]
[1767611376156,0.6760775,135.31,135.29,7.4]
[1767611376359,0.61607751,135.31,135.27,46.0800513]
[1767611376538,0.61607751,135.31,135.28,7.39202438]
[1767611377660,0.61607751,135.31,135.28,7.54703205]
[1767611378554,0.6760775,135.32,135.29,0.15500767]
[1767611380542,0.6760775,135.32,135.29,4.73861433]
[1767611380743,0.6760775,135.33,135.31,4.58360666]
[1767611380960,0.6760775,135.33,135.31,3.85860666]
[1767611381961,0.6760775,135.33,135.32,4.58360666]
[1767611382361,0.6760775,135.33,135.3,8.08290815]
[1767611382535,0.6760775,135.33,135.32,4.58360666]
[1767611385038,5.87474894,135.34,135.32,4.58360666]
[1767611385241,5.19867144,135.34,135.32,5.27585623]
[1767611385434,5.19867144,135.34,135.33,4.58360666]
[1767611386441,0.6760775,135.35,135.33,4.58360666]
[1767611386644,0.6760775,135.35,135.34,4.58360666]
[1767611387660,0.6760775,135.35,135.34,4.55360666]
[1767611388247,7.38785694,135.36,135.34,4.55360666]
[1767611388248,0.6760775,135.36,135.34,4.55360666]
[1767611388566,0.6760775,135.36,135.35,4.58360666]
[1767611388862,0.6760775,135.36,135.35,4.55360666]
[1767611390064,4.68030786,135.37,135.35,4.55360666]
[1767611390239,4.68030786,135.37,135.36,4.58360666]
[1767611390441,4.68030786,135.37,135.36,3.85860666]
[1767611390744,4.68030786,135.37,135.36,3.13969183]
[1767611391749,7.38580074,135.4,135.36,3.8319414]
[1767611391956,7.38580074,135.4,135.37,3.37e-06]
[1767611392260,0.5760775,135.39,135.37,3.37e-06]
[1767611395058,0.5760775,135.39,135.36,4.58360666]
[1767611395259,0.5760775,135.39,135.35,7.38797997]
[1767611395460,0.5760775,135.39,135.36,4.58360666]
[1767611397264,0.099,135.39,135.36,5.27419592]
[1767611397469,7.38580074,135.4,135.36,5.27419592]
[1767611397777,7.96187824,135.4,135.36,5.27419592]
[1767611401067,0.099,135.39,135.34,12.62839725]
[1767611401579,0.099,135.39,135.34,0.65617084]
[1767611401896,0.099,135.39,135.34,4.58360666]
[1767611402065,0.099,135.39,135.34,7.38877533]
[1767611402565,0.099,135.39,135.35,4.58360666]
[1767611402769,0.099,135.39,135.35,4.55360666]
[1767611406376,0.099,135.39,135.36,4.58360666]
[1767611407484,25.94861167,135.4,135.37,0.65617084]
[1767611407781,25.94861167,135.4,135.36,4.58360666]
[1767611409584,25.94861167,135.4,135.36,5.2397775]
[1767611409880,7.48480074,135.4,135.37,0.65617084]
[1767611410065,7.48480074,135.4,135.36,4.58360666]
[1767611412075,7.48480074,135.4,135.36,5.2397775]
[1767611415690,7.48480074,135.4,135.36,0.65617084]
[1767611415898,7.48480074,135.4,135.36,5.2397775]
[1767611417388,0.7064459,135.38,135.36,4.58360666]
[1767611419894,0.7064459,135.38,135.35,7.38810724]
[1767611420088,0.7064459,135.38,135.36,4.58360666]
[1767611421902,0.7064459,135.38,135.35,11.9717139]
[1767611422277,0.7064459,135.38,135.35,7.38810724]
[1767611422489,0.7064459,135.38,135.35,11.9717139]
[1767611422702,0.7064459,135.37,135.34,0.65617084]
[1767611423011,0.7064459,135.37,135.35,4.58360666]
[1767611423211,7.38667629,135.38,135.35,5.2397775]
[1767611423586,8.09312219,135.38,135.35,5.2397775]
[1767611423788,0.7064459,135.37,135.35,4.58360666]
[1767611423995,8.09312219,135.38,135.35,5.2397775]
[1767611425126,0.7064459,135.35,135.32,10.3159199]
[1767611425291,0.7064459,135.34,135.31,0.65617084]
[1767611425614,0.7064459,135.34,135.3,0.65617084]
[1767611426009,0.7064459,135.33,135.3,0.65617084]
[1767611426596,8.09596198,135.33,135.3,0.65617084]
[1767611426918,12.67956864,135.33,135.3,0.65617084]
[1767611427612,8.09596198,135.33,135.3,0.65617084]
[1767611428913,8.09596198,135.33,135.29,0.65617084]
[1767611429111,0.7064459,135.32,135.29,0.65617084]
[1767611429504,0.7064459,135.32,135.29,5.2397775]
[1767611432626,0.7064459,135.32,135.29,3.5907736]
[1767611433838,0.7064459,135.32,135.29,0.65617084]
[1767611434217,7.38951608,135.33,135.29,0.65617084]
[1767611434423,11.03678652,135.33,135.29,0.65617084]
[1767611434620,0.71266768,135.32,135.28,0.67774405]
[1767611434921,3.64727044,135.31,135.28,0.67774405]
[1767611435902,11.0380415,135.31,135.28,0.67774405]
[1767611437730,8.10343874,135.31,135.28,0.67774405]
[1767611440626,11.0380415,135.31,135.28,0.67774405]
[1767611440932,8.10343874,135.31,135.28,0.67774405]
[1767611441131,11.0380415,135.31,135.28,0.67774405]
[1767611441426,8.10443823,135.29,135.26,15.43485774]
[1767611441624,11.03904099,135.29,135.26,15.43485774]
[1767611442216,3.64727044,135.28,135.26,14.75711369]
[1767611442416,3.58727045,135.28,135.26,14.75711369]
[1767611442929,0.65266769,135.28,135.26,14.75711369]
[1767611443835,7.39177055,135.29,135.26,15.43485774]
[1767611444632,11.03850953,135.3,135.27,0.67774405]
[1767611446640,2.93460276,135.29,135.27,0.67774405]
[1767611446834,2.88792511,135.29,135.27,0.67774405]
[1767611447836,11.03850953,135.3,135.27,0.67774405]
[1767611452338,0.65411452,135.29,135.26,15.41942258]
[1767611452543,0.65411452,135.28,135.26,15.41942258]
[1767611453045,0.65411452,135.29,135.26,15.41942258]
[1767611454438,10.97995637,135.3,135.27,0.66230889]
[1767611455253,2.93460276,135.29,135.27,0.66230889]
[1767611459545,10.32584185,135.3,135.28,0.34658081]
[1767611459727,10.32584185,135.3,135.27,0.34658081]
[1767611459929,10.97995637,135.3,135.27,0.34658081]
[1767611465151,0.70615891,135.32,135.28,0.34658081]
[1767611465338,0.70615891,135.31,135.28,0.34658081]
[1767611470860,0.70615891,135.32,135.29,0.34658081]
[1767611472446,3.64076167,135.32,135.29,0.34658081]
[1767611473363,11.03088509,135.32,135.29,0.34658081]
[1767611473545,0.70615891,135.31,135.28,0.34658081]
[1767611489374,0.70615891,135.31,135.28,7.73853822]
[1767611491271,0.69760785,135.32,135.29,7.73776165]
[1767611493677,0.69760785,135.32,135.28,7.39180584]
[1767611493977,0.69760785,135.31,135.27,10.32701175]
[1767611494567,0.69760785,135.31,135.27,11.97875316]
[1767611495275,0.69760785,135.31,135.27,12.32533397]
[1767611495694,0.69760785,135.31,135.28,0.34658081]
[1767611496883,0.69760785,135.32,135.29,0.34658081]
[1767611498402,8.08750597,135.32,135.29,0.34658081]
[1767611498582,0.69760785,135.31,135.28,11.97829373]
[1767611499703,0.69760785,135.31,135.28,12.32487454]
[1767611500199,0.69760785,135.31,135.28,11.97829373]
[1767611500385,0.69760785,135.31,135.28,4.58634417]
[1767611505199,0.69760785,135.31,135.28,4.93292498]
[1767611505917,0.69760785,135.29,135.26,14.75711369]
[1767611506208,0.63760786,135.29,135.26,14.75711369]
[1767611509102,7.9691747,135.29,135.26,14.75711369]
[1767611509505,7.90917471,135.29,135.26,14.75711369]
[1767611512203,0.66191843,135.28,135.26,14.75711369]
[1767611513384,0.60191844,135.28,135.26,14.75711369]
[1767611516110,0.54191845,135.28,135.26,14.75711369]
[1767611516317,0.48191846,135.28,135.26,14.75711369]
[1767611518711,7.87406823,135.28,135.26,14.75711369]
[1767611519017,0.66191843,135.27,135.26,14.75711369]
[1767611521410,0.66191843,135.27,135.26,13.12561287]
[1767611522322,0.099,135.27,135.26,13.12561287]
[1767611522621,0.099,135.27,135.26,12.56369444]
[1767611522818,7.39214977,135.28,135.26,12.56369444]
[1767611524725,7.39214977,135.28,135.24,7.39424119]
[1767611524908,7.39214977,135.28,135.25,0.69077769]
[1767611525110,11.97849394,135.28,135.23,12.18108726]
[1767611525323,11.97849394,135.28,135.24,0.69077769]
[1767611525527,11.97849394,135.28,135.23,12.87186495]
[1767611525912,11.97849394,135.28,135.24,0.69077769]
[1767611526608,11.97849394,135.28,135.23,8.28552078]
[1767611527028,11.97849394,135.28,135.24,0.69077769]
[1767611527321,11.97849394,135.28,135.23,12.87186495]